[Event "*** Titled Tuesday Blitz"]
[Site "Chess.com"]
[Date "2021.04.06"]
[Round "5"]
[White "crazy_but_lazy"]
[Black "elextranjero00"]
[Result "0-1"]
[WhiteElo "2423"]
[BlackElo "2591"]
[TimeControl "180+1"]
[EndTime "10:56:54 PDT"]
[Termination "elextranjero00 won on time"]

1. d4 {[%clk 0:03:00.2]} 1... Nf6 {[%clk 0:02:58.3]} 2. c4 {[%clk 0:02:56.6]}
2... c5 {[%clk 0:02:52.5]} 3. Nf3 {[%clk 0:02:53.7]} 3... cxd4 {[%clk 0:02:50]}
4. Nxd4 {[%clk 0:02:53.1]} 4... Nc6 {[%clk 0:02:49.8]} 5. g3 {[%clk 0:02:51.9]}
5... e6 {[%clk 0:02:46.3]} 6. Bg2 {[%clk 0:02:51.1]} 6... Qb6 {[%clk 0:02:41.6]}
7. Nb3 {[%clk 0:02:41.1]} 7... Ne5 {[%clk 0:02:20.3]} 8. N1d2 {[%clk 0:02:31.7]}
8... Be7 {[%clk 0:02:09.9]} 9. O-O {[%clk 0:02:30.6]} 9... O-O {[%clk
0:02:09.2]} 10. Qc2 {[%clk 0:01:46.7]} 10... d5 {[%clk 0:01:55.6]} 11. cxd5
{[%clk 0:01:32.9]} 11... exd5 {[%clk 0:01:55]} 12. Nf3 {[%clk 0:01:27.8]} 12...
Nxf3+ {[%clk 0:01:47.9]} 13. Bxf3 {[%clk 0:01:28.7]} 13... Bh3 {[%clk
0:01:38.5]} 14. Be3 {[%clk 0:01:28.1]} 14... Qe6 {[%clk 0:01:25.7]} 15. Nd4
{[%clk 0:01:20.7]} 15... Qd7 {[%clk 0:01:24.4]} 16. Rfd1 {[%clk 0:01:19.4]}
16... Rac8 {[%clk 0:01:16.1]} 17. Qb3 {[%clk 0:01:18]} 17... Bc5 {[%clk
0:01:03.4]} 18. Qd3 {[%clk 0:00:33.2]} 18... Rfe8 {[%clk 0:00:57.6]} 19. Rac1
{[%clk 0:00:23.4]} 19... Bb6 {[%clk 0:00:48.6]} 20. Rxc8 {[%clk 0:00:18.1]}
20... Rxc8 {[%clk 0:00:48.3]} 21. Nc2 {[%clk 0:00:14.7]} 21... Bf5 {[%clk
0:00:41.5]} 22. Qa3 {[%clk 0:00:01.7]} 22... Bxc2 {[%clk 0:00:36.2]} 23. Rd2
{[%clk 0:00:02.3]} 23... Bf5 {[%clk 0:00:32.5]} 24. Bxb6 {[%clk 0:00:01.8]}
24... axb6 {[%clk 0:00:33.4]} 0-1

[Event "*** Titled Tuesday Blitz"]
[Site "Chess.com"]
[Date "2021.04.06"]
[Round "5"]
[White "googlegoom"]
[Black "Aradhya2000"]
[Result "0-1"]
[WhiteElo "2433"]
[BlackElo "2596"]
[TimeControl "180+1"]
[EndTime "10:56:57 PDT"]
[Termination "Aradhya2000 won by resignation"]

1. Nf3 {[%clk 0:02:18.4]} 1... d5 {[%clk 0:02:58.6]} 2. b3 {[%clk 0:02:18.7]}
2... Nf6 {[%clk 0:02:58.2]} 3. Bb2 {[%clk 0:02:19.3]} 3... Bf5 {[%clk
0:02:58.1]} 4. e3 {[%clk 0:02:19.9]} 4... e6 {[%clk 0:02:58.1]} 5. Be2 {[%clk
0:02:20.6]} 5... Nbd7 {[%clk 0:02:56.8]} 6. O-O {[%clk 0:02:21.2]} 6... h6
{[%clk 0:02:56.2]} 7. d4 {[%clk 0:02:21.2]} 7... Bd6 {[%clk 0:02:55.5]} 8. Nbd2
{[%clk 0:02:17.8]} 8... O-O {[%clk 0:02:55.5]} 9. c4 {[%clk 0:02:16.3]} 9... c6
{[%clk 0:02:55.7]} 10. a3 {[%clk 0:02:15.8]} 10... Qb8 {[%clk 0:02:55.4]} 11. b4
{[%clk 0:02:16.4]} 11... b5 {[%clk 0:02:45.9]} 12. cxb5 {[%clk 0:02:13.9]} 12...
cxb5 {[%clk 0:02:46.4]} 13. Nb3 {[%clk 0:02:14.4]} 13... a6 {[%clk 0:02:43.9]}
14. Nc5 {[%clk 0:02:13.5]} 14... Nb6 {[%clk 0:02:44.3]} 15. Ne5 {[%clk
0:02:07.6]} 15... Rc8 {[%clk 0:02:42.6]} 16. Rc1 {[%clk 0:02:01.9]} 16... Nc4
{[%clk 0:02:40.4]} 17. Nxc4 {[%clk 0:01:57.1]} 17... bxc4 {[%clk 0:02:40.8]} 18.
h3 {[%clk 0:01:51.8]} 18... a5 {[%clk 0:02:26.2]} 19. Bc3 {[%clk 0:01:51.5]}
19... axb4 {[%clk 0:02:26.8]} 20. axb4 {[%clk 0:01:48.5]} 20... Ra2 {[%clk
0:02:23.2]} 21. Ra1 {[%clk 0:01:45.6]} 21... Qa7 {[%clk 0:02:21.1]} 22. Rxa2
{[%clk 0:01:27.7]} 22... Qxa2 {[%clk 0:02:22]} 23. Bf3 {[%clk 0:01:26.1]} 23...
Bd3 {[%clk 0:02:02.3]} 24. Qa1 {[%clk 0:01:10.8]} 24... Ra8 {[%clk 0:01:58]} 25.
Qxa2 {[%clk 0:00:57.2]} 25... Rxa2 {[%clk 0:01:58.9]} 26. Rc1 {[%clk 0:00:47.6]}
26... Ne4 {[%clk 0:01:48.2]} 27. Bxe4 {[%clk 0:00:34.5]} 27... dxe4 {[%clk
0:01:49.1]} 28. b5 {[%clk 0:00:33.5]} 28... Kf8 {[%clk 0:01:28.8]} 29. b6 {[%clk
0:00:19.2]} 29... Ke7 {[%clk 0:01:26.9]} 30. b7 {[%clk 0:00:12.6]} 30... Kd8
{[%clk 0:01:00.8]} 31. f3 {[%clk 0:00:12.4]} 31... exf3 {[%clk 0:00:59.8]} 32.
gxf3 {[%clk 0:00:12.8]} 32... Kc7 {[%clk 0:01:00.3]} 33. Nxd3 {[%clk 0:00:13.1]}
33... cxd3 {[%clk 0:00:58.2]} 34. Rd1 {[%clk 0:00:14]} 34... Kxb7 {[%clk
0:00:55.8]} 35. Rxd3 {[%clk 0:00:13.7]} 35... Ra3 {[%clk 0:00:56.1]} 0-1

[Event "*** Titled Tuesday Blitz"]
[Site "Chess.com"]
[Date "2021.04.06"]
[Round "5"]
[White "vugarrasulov"]
[Black "731291"]
[Result "1/2-1/2"]
[WhiteElo "2868"]
[BlackElo "2677"]
[TimeControl "180+1"]
[EndTime "10:56:58 PDT"]
[Termination "Game drawn by repetition"]

1. e4 {[%clk 0:03:00.9]} 1... c5 {[%clk 0:02:58.7]} 2. Nf3 {[%clk 0:03:01.2]}
2... e6 {[%clk 0:02:56.8]} 3. d4 {[%clk 0:03:00.4]} 3... cxd4 {[%clk 0:02:57.7]}
4. Nxd4 {[%clk 0:03:00.9]} 4... Nc6 {[%clk 0:02:55.9]} 5. Nc3 {[%clk 0:03:00.8]}
5... Qc7 {[%clk 0:02:55.7]} 6. g3 {[%clk 0:02:58.7]} 6... a6 {[%clk 0:02:55]} 7.
Bg2 {[%clk 0:02:59.2]} 7... Nf6 {[%clk 0:02:54.4]} 8. O-O {[%clk 0:02:59.6]}
8... d6 {[%clk 0:02:54.5]} 9. Re1 {[%clk 0:02:54.6]} 9... Bd7 {[%clk 0:02:53.2]}
10. Nxc6 {[%clk 0:02:51.9]} 10... Bxc6 {[%clk 0:02:51.5]} 11. Nd5 {[%clk
0:02:51.2]} 11... Qd8 {[%clk 0:02:51.6]} 12. Bg5 {[%clk 0:02:45.9]} 12... Be7
{[%clk 0:02:51.2]} 13. Bxf6 {[%clk 0:02:39.9]} 13... Bxf6 {[%clk 0:02:51.3]} 14.
Nxf6+ {[%clk 0:02:40.1]} 14... gxf6 {[%clk 0:02:48.9]} 15. Qg4 {[%clk
0:02:33.8]} 15... Ke7 {[%clk 0:02:46.3]} 16. Rad1 {[%clk 0:02:33]} 16... Qa5
{[%clk 0:02:43.1]} 17. a3 {[%clk 0:02:26.8]} 17... h5 {[%clk 0:02:41.2]} 18. Qf4
{[%clk 0:02:26.3]} 18... Qe5 {[%clk 0:02:41.3]} 19. Qc1 {[%clk 0:02:22.7]} 19...
h4 {[%clk 0:02:39.8]} 20. Rd3 {[%clk 0:02:10.7]} 20... hxg3 {[%clk 0:02:38]} 21.
hxg3 {[%clk 0:02:11.6]} 21... Rh5 {[%clk 0:02:12.5]} 22. b4 {[%clk 0:01:59.6]}
22... Rah8 {[%clk 0:02:10.4]} 23. f4 {[%clk 0:02:00]} 23... Qb5 {[%clk
0:02:00.4]} 24. c4 {[%clk 0:02:00.4]} 24... Qb6+ {[%clk 0:01:59.9]} 25. Qe3
{[%clk 0:02:00.7]} 25... Qxe3+ {[%clk 0:01:57.3]} 26. Rexe3 {[%clk 0:01:57.7]}
26... f5 {[%clk 0:01:45.9]} 27. exf5 {[%clk 0:01:47.7]} 27... Rxf5 {[%clk
0:01:43.6]} 28. Bxc6 {[%clk 0:01:45]} 28... bxc6 {[%clk 0:01:44.5]} 29. Kg2
{[%clk 0:01:43.4]} 29... Rfh5 {[%clk 0:01:44.2]} 30. Kf3 {[%clk 0:01:43.8]}
30... Rh1 {[%clk 0:01:44.1]} 31. c5 {[%clk 0:01:27.2]} 31... d5 {[%clk
0:01:42.3]} 32. Rd2 {[%clk 0:01:27]} 32... Rf1+ {[%clk 0:01:28.2]} 33. Rf2
{[%clk 0:01:26.3]} 33... Rd1 {[%clk 0:01:27.8]} 34. f5 {[%clk 0:01:23.1]} 34...
Rh5 {[%clk 0:01:23.6]} 35. Kg4 {[%clk 0:01:20.2]} 35... Rh6 {[%clk 0:01:17.4]}
36. Kg5 {[%clk 0:01:20.1]} 36... Rdh1 {[%clk 0:01:15.2]} 37. g4 {[%clk
0:01:20.3]} 37... f6+ {[%clk 0:01:13.6]} 38. Kf4 {[%clk 0:01:18.8]} 38... e5+
{[%clk 0:01:14.2]} 39. Kf3 {[%clk 0:01:18.3]} 39... R6h3+ {[%clk 0:01:05.9]} 40.
Ke2 {[%clk 0:01:18.4]} 40... Re1+ {[%clk 0:01:04]} 41. Kxe1 {[%clk 0:01:17.8]}
41... Rxe3+ {[%clk 0:01:04.9]} 42. Kd2 {[%clk 0:01:14.8]} 42... Rxa3 {[%clk
0:01:03.9]} 43. Rf1 {[%clk 0:01:10.5]} 43... e4 {[%clk 0:00:58.5]} 44. Rh1
{[%clk 0:01:09.7]} 44... d4 {[%clk 0:00:57.7]} 45. Rh7+ {[%clk 0:01:10.1]} 45...
Kf8 {[%clk 0:00:54.9]} 46. Rd7 {[%clk 0:01:05.3]} 46... Rd3+ {[%clk 0:00:52]}
47. Ke2 {[%clk 0:01:05.2]} 47... Re3+ {[%clk 0:00:40.4]} 48. Kd2 {[%clk
0:01:05.1]} 48... Rd3+ {[%clk 0:00:40.5]} 49. Ke2 {[%clk 0:01:05.5]} 49... Re3+
{[%clk 0:00:32.1]} 50. Kd2 {[%clk 0:01:05.4]} 50... Rd3+ {[%clk 0:00:32.5]}
1/2-1/2

[Event "*** Titled Tuesday Blitz"]
[Site "Chess.com"]
[Date "2021.04.06"]
[Round "5"]
[White "Zhigalko_Sergei"]
[Black "Ermito2020"]
[Result "0-1"]
[WhiteElo "2892"]
[BlackElo "2558"]
[TimeControl "180+1"]
[EndTime "10:57:00 PDT"]
[Termination "Ermito2020 won by resignation"]

1. e4 {[%clk 0:03:00.9]} 1... c5 {[%clk 0:02:58.6]} 2. Nf3 {[%clk 0:03:01]} 2...
d6 {[%clk 0:02:59.1]} 3. d4 {[%clk 0:03:01.3]} 3... cxd4 {[%clk 0:03:00]} 4.
Qxd4 {[%clk 0:03:02.2]} 4... Nf6 {[%clk 0:03:00.6]} 5. Nc3 {[%clk 0:03:02.1]}
5... a6 {[%clk 0:02:54.1]} 6. Bc4 {[%clk 0:03:02.3]} 6... Nc6 {[%clk 0:02:53]}
7. Qd3 {[%clk 0:03:02.6]} 7... Bg4 {[%clk 0:02:48.9]} 8. Bb3 {[%clk 0:03:02.2]}
8... g6 {[%clk 0:02:32.6]} 9. Bg5 {[%clk 0:02:54]} 9... Bg7 {[%clk 0:02:31.5]}
10. O-O-O {[%clk 0:02:54.5]} 10... O-O {[%clk 0:02:21.9]} 11. h3 {[%clk
0:02:54.5]} 11... Bxf3 {[%clk 0:02:21.3]} 12. Qxf3 {[%clk 0:02:55.4]} 12... Ne5
{[%clk 0:02:20.6]} 13. Qe2 {[%clk 0:02:48.2]} 13... b5 {[%clk 0:02:21]} 14. f4
{[%clk 0:02:47.8]} 14... Nc4 {[%clk 0:02:16.3]} 15. e5 {[%clk 0:02:46]} 15...
Nd7 {[%clk 0:01:56]} 16. Bxc4 {[%clk 0:02:10.2]} 16... bxc4 {[%clk 0:01:55.5]}
17. Rxd6 {[%clk 0:02:08.1]} 17... h6 {[%clk 0:01:31.7]} 18. Bh4 {[%clk
0:02:05.6]} 18... g5 {[%clk 0:01:31.3]} 19. Rhd1 {[%clk 0:02:05.1]} 19... exd6
{[%clk 0:01:30.2]} 20. fxg5 {[%clk 0:01:52.5]} 20... hxg5 {[%clk 0:01:27.9]} 21.
Bg3 {[%clk 0:01:12.3]} 21... Nxe5 {[%clk 0:01:23.1]} 22. Ne4 {[%clk 0:01:10.3]}
22... Rb8 {[%clk 0:01:19.1]} 23. Rxd6 {[%clk 0:01:06.3]} 23... Qe7 {[%clk
0:01:18.5]} 24. Qh5 {[%clk 0:00:50.2]} 24... Rfe8 {[%clk 0:00:53.1]} 25. Rd5
{[%clk 0:00:42]} 25... Qb7 {[%clk 0:00:47.5]} 26. Bxe5 {[%clk 0:00:19.5]} 26...
Qxd5 {[%clk 0:00:30.2]} 27. Nxg5 {[%clk 0:00:19]} 27... Rxe5 {[%clk 0:00:28.1]}
28. Qh7+ {[%clk 0:00:17.4]} 28... Kf8 {[%clk 0:00:27.6]} 0-1

[Event "*** Titled Tuesday Blitz"]
[Site "Chess.com"]
[Date "2021.04.06"]
[Round "5"]
[White "biostatistician"]
[Black "Caterpiller35"]
[Result "1-0"]
[WhiteElo "2626"]
[BlackElo "2447"]
[TimeControl "180+1"]
[EndTime "10:57:06 PDT"]
[Termination "biostatistician won on time"]

1. d4 {[%clk 0:02:58.3]} 1... Nf6 {[%clk 0:02:59.8]} 2. Nf3 {[%clk 0:02:59.2]}
2... e6 {[%clk 0:02:59.6]} 3. c4 {[%clk 0:02:59.7]} 3... b6 {[%clk 0:02:58.7]}
4. Nc3 {[%clk 0:02:59.8]} 4... Bb4 {[%clk 0:02:58.6]} 5. Qc2 {[%clk 0:03:00.2]}
5... Bb7 {[%clk 0:02:58.7]} 6. a3 {[%clk 0:03:01.1]} 6... Bxc3+ {[%clk 0:02:58]}
7. Qxc3 {[%clk 0:03:00.7]} 7... Ne4 {[%clk 0:02:58.2]} 8. Qc2 {[%clk 0:02:57.7]}
8... d6 {[%clk 0:02:58.4]} 9. g3 {[%clk 0:02:57.6]} 9... Nd7 {[%clk 0:02:57]}
10. Bg2 {[%clk 0:02:57.8]} 10... f5 {[%clk 0:02:52.9]} 11. O-O {[%clk
0:02:56.7]} 11... O-O {[%clk 0:02:53]} 12. Ng5 {[%clk 0:02:56.9]} 12... Nxg5
{[%clk 0:02:51]} 13. Bxb7 {[%clk 0:02:57.5]} 13... Rb8 {[%clk 0:02:50.3]} 14.
Bc6 {[%clk 0:02:57.7]} 14... Nf7 {[%clk 0:02:43.9]} 15. e4 {[%clk 0:02:57.4]}
15... fxe4 {[%clk 0:02:41]} 16. Qxe4 {[%clk 0:02:58.3]} 16... e5 {[%clk
0:02:39.5]} 17. Be3 {[%clk 0:02:58]} 17... exd4 {[%clk 0:02:38]} 18. Bxd4 {[%clk
0:02:58.9]} 18... Nde5 {[%clk 0:02:33.5]} 19. Bd5 {[%clk 0:02:56.8]} 19... Kh8
{[%clk 0:02:27.2]} 20. f4 {[%clk 0:02:53.1]} 20... Ng4 {[%clk 0:02:21.3]} 21.
Rae1 {[%clk 0:02:48.3]} 21... Nf6 {[%clk 0:02:16.9]} 22. Qe7 {[%clk 0:02:48.1]}
22... Nh6 {[%clk 0:01:51.4]} 23. Qxd8 {[%clk 0:02:39.7]} 23... Rbxd8 {[%clk
0:01:50.2]} 24. Re7 {[%clk 0:02:40.6]} 24... Nxd5 {[%clk 0:00:41.1]} 25. cxd5
{[%clk 0:02:40.6]} 25... Nf5 {[%clk 0:00:40.9]} 26. Re4 {[%clk 0:02:32.1]} 26...
Rfe8 {[%clk 0:00:37.8]} 27. Rfe1 {[%clk 0:02:29.2]} 27... Rxe4 {[%clk
0:00:37.5]} 28. Rxe4 {[%clk 0:02:30.1]} 28... Nxd4 {[%clk 0:00:37.8]} 29. Rxd4
{[%clk 0:02:30.3]} 29... Re8 {[%clk 0:00:38.7]} 30. Kf2 {[%clk 0:02:30.3]} 30...
Kg8 {[%clk 0:00:38.9]} 31. Kf3 {[%clk 0:02:25.2]} 31... Kf7 {[%clk 0:00:38.9]}
32. Re4 {[%clk 0:02:25.6]} 32... Rc8 {[%clk 0:00:34.9]} 33. Rc4 {[%clk
0:02:23.1]} 33... Ke7 {[%clk 0:00:32.5]} 34. b4 {[%clk 0:02:17.7]} 34... Kd7
{[%clk 0:00:29.6]} 35. b5 {[%clk 0:02:17.7]} 35... a6 {[%clk 0:00:25.2]} 36.
bxa6 {[%clk 0:02:16.4]} 36... Ra8 {[%clk 0:00:25.7]} 37. Ra4 {[%clk 0:02:16.6]}
37... c6 {[%clk 0:00:25.9]} 38. Ke4 {[%clk 0:02:00.8]} 38... c5 {[%clk
0:00:17.2]} 39. Kd3 {[%clk 0:01:55.1]} 39... b5 {[%clk 0:00:15.8]} 40. Ra5
{[%clk 0:01:53.7]} 40... Kc7 {[%clk 0:00:14]} 41. a4 {[%clk 0:01:54.2]} 41... b4
{[%clk 0:00:09.6]} 42. Kc4 {[%clk 0:01:36.7]} 42... Kb6 {[%clk 0:00:09.7]} 43.
Rb5+ {[%clk 0:01:37.2]} 43... Kxa6 {[%clk 0:00:10.2]} 44. a5 {[%clk 0:01:37.5]}
44... Rc8 {[%clk 0:00:06.5]} 45. Rb6+ {[%clk 0:01:35]} 45... Kxa5 {[%clk
0:00:07.4]} 46. Rxd6 {[%clk 0:01:35.7]} 46... Rc7 {[%clk 0:00:01.3]} 47. f5
{[%clk 0:01:31.5]} 1-0

[Event "*** Titled Tuesday Blitz"]
[Site "Chess.com"]
[Date "2021.04.06"]
[Round "5"]
[White "Rodalquilar"]
[Black "HackingKid98"]
[Result "1-0"]
[WhiteElo "2680"]
[BlackElo "2480"]
[TimeControl "180+1"]
[EndTime "10:57:07 PDT"]
[Termination "Rodalquilar won by resignation"]

1. d4 {[%clk 0:03:00.9]} 1... d5 {[%clk 0:02:58.9]} 2. Bf4 {[%clk 0:03:00.9]}
2... c6 {[%clk 0:02:49.8]} 3. e3 {[%clk 0:02:59.8]} 3... Bf5 {[%clk 0:02:49.3]}
4. c4 {[%clk 0:02:59.1]} 4... e6 {[%clk 0:02:49.2]} 5. Nc3 {[%clk 0:02:59.2]}
5... Nd7 {[%clk 0:02:47.5]} 6. Qb3 {[%clk 0:02:58.8]} 6... Qb6 {[%clk
0:02:46.6]} 7. c5 {[%clk 0:02:59.3]} 7... Qxb3 {[%clk 0:02:44.1]} 8. axb3 {[%clk
0:03:00.2]} 8... a6 {[%clk 0:02:43.3]} 9. b4 {[%clk 0:02:57.7]} 9... Rc8 {[%clk
0:02:42.4]} 10. Nf3 {[%clk 0:02:56.8]} 10... h6 {[%clk 0:02:41.2]} 11. Nd2
{[%clk 0:02:53.9]} 11... g5 {[%clk 0:02:40]} 12. Bg3 {[%clk 0:02:53.5]} 12...
Be7 {[%clk 0:02:30.1]} 13. Nb3 {[%clk 0:02:52.3]} 13... Bd8 {[%clk 0:02:29.9]}
14. Na5 {[%clk 0:02:40.4]} 14... Bxa5 {[%clk 0:02:28.9]} 15. bxa5 {[%clk
0:02:41.3]} 15... f6 {[%clk 0:02:16.1]} 16. Bd6 {[%clk 0:02:21.6]} 16... Nf8
{[%clk 0:01:39.1]} 17. Ra4 {[%clk 0:02:11.4]} 17... Rh7 {[%clk 0:01:37.9]} 18.
Rb4 {[%clk 0:02:11.5]} 18... Rd7 {[%clk 0:01:34.6]} 19. Be2 {[%clk 0:02:04.8]}
19... Rcd8 {[%clk 0:01:24.8]} 20. Kd2 {[%clk 0:01:55.7]} 20... Ne7 {[%clk
0:01:21.5]} 21. Ra1 {[%clk 0:01:48]} 21... Nc8 {[%clk 0:01:20.6]} 22. Bb8 {[%clk
0:01:42.1]} 22... Ne7 {[%clk 0:01:01.3]} 23. Bg3 {[%clk 0:01:34.6]} 23... Nc8
{[%clk 0:00:57.1]} 24. Ra3 {[%clk 0:01:25.7]} 24... Na7 {[%clk 0:00:56.5]} 25.
Rb6 {[%clk 0:01:25.9]} 25... Ng6 {[%clk 0:00:46.3]} 26. Rab3 {[%clk 0:01:19.5]}
26... Nb5 {[%clk 0:00:44.9]} 27. Nxb5 {[%clk 0:01:17.6]} 27... axb5 {[%clk
0:00:34.4]} 28. a6 {[%clk 0:01:13.4]} 28... bxa6 {[%clk 0:00:33.9]} 29. Rxc6
{[%clk 0:01:13.2]} 29... Ra7 {[%clk 0:00:27.6]} 30. Ra3 {[%clk 0:01:12]} 30...
Rda8 {[%clk 0:00:25.4]} 31. Rcxa6 {[%clk 0:01:12.3]} 31... Rxa6 {[%clk
0:00:22.2]} 32. Rxa6 {[%clk 0:01:11.9]} 32... Rxa6 {[%clk 0:00:23.1]} 33. Bxb5+
{[%clk 0:01:11.9]} 33... Kd8 {[%clk 0:00:23.8]} 34. Bxa6 {[%clk 0:01:12.2]}
34... e5 {[%clk 0:00:23]} 35. b4 {[%clk 0:01:10.7]} 35... Bc8 {[%clk 0:00:18.2]}
36. Bd3 {[%clk 0:01:07]} 36... e4 {[%clk 0:00:17.4]} 37. Be2 {[%clk 0:01:05.2]}
37... Ne7 {[%clk 0:00:17.4]} 38. b5 {[%clk 0:01:01.8]} 38... Nf5 {[%clk
0:00:17.4]} 39. Bb8 {[%clk 0:01:02]} 39... Bb7 {[%clk 0:00:16.2]} 40. c6 {[%clk
0:01:00]} 40... Ba8 {[%clk 0:00:16.1]} 41. c7+ {[%clk 0:00:58.5]} 1-0

[Event "*** Titled Tuesday Blitz"]
[Site "Chess.com"]
[Date "2021.04.06"]
[Round "5"]
[White "Camels1981"]
[Black "UKR_Master"]
[Result "1-0"]
[WhiteElo "2372"]
[BlackElo "2497"]
[TimeControl "180+1"]
[EndTime "10:57:08 PDT"]
[Termination "Camels1981 won by resignation"]

1. e4 {[%clk 0:03:00.9]} 1... c5 {[%clk 0:02:58.7]} 2. Nf3 {[%clk 0:03:01]} 2...
d6 {[%clk 0:02:59.2]} 3. d4 {[%clk 0:02:55.3]} 3... cxd4 {[%clk 0:02:58.9]} 4.
Nxd4 {[%clk 0:02:56.2]} 4... Nf6 {[%clk 0:02:59.8]} 5. Nc3 {[%clk 0:02:55.5]}
5... a6 {[%clk 0:02:59.1]} 6. Bc4 {[%clk 0:02:54.5]} 6... e6 {[%clk 0:02:56.8]}
7. Bb3 {[%clk 0:02:53.3]} 7... Be7 {[%clk 0:02:54]} 8. O-O {[%clk 0:02:49.3]}
8... Nc6 {[%clk 0:02:51]} 9. Be3 {[%clk 0:02:35.5]} 9... Bd7 {[%clk 0:02:47.1]}
10. f4 {[%clk 0:02:30.9]} 10... Qc7 {[%clk 0:02:41.4]} 11. Qf3 {[%clk
0:02:25.2]} 11... Rc8 {[%clk 0:02:25.4]} 12. Rad1 {[%clk 0:02:21.8]} 12... b5
{[%clk 0:02:21.2]} 13. a3 {[%clk 0:02:15.9]} 13... Nxd4 {[%clk 0:02:07.7]} 14.
Bxd4 {[%clk 0:02:15.3]} 14... Bc6 {[%clk 0:02:08.3]} 15. f5 {[%clk 0:01:49.8]}
15... e5 {[%clk 0:01:58.7]} 16. Bf2 {[%clk 0:01:47.7]} 16... Qb7 {[%clk
0:01:58.5]} 17. Rfe1 {[%clk 0:01:44.4]} 17... a5 {[%clk 0:01:56.2]} 18. Bh4
{[%clk 0:01:18.4]} 18... b4 {[%clk 0:01:43.4]} 19. axb4 {[%clk 0:01:13.5]} 19...
axb4 {[%clk 0:01:42.5]} 20. Bxf6 {[%clk 0:01:12]} 20... Bxf6 {[%clk 0:01:13.9]}
21. Nd5 {[%clk 0:01:08.9]} 21... Bxd5 {[%clk 0:01:14.3]} 22. Rxd5 {[%clk
0:01:06]} 22... Qb6+ {[%clk 0:01:08]} 23. Qf2 {[%clk 0:01:02.4]} 23... Qxf2+
{[%clk 0:01:02.2]} 24. Kxf2 {[%clk 0:01:03.3]} 24... Ke7 {[%clk 0:01:02.9]} 25.
Ra1 {[%clk 0:00:54.3]} 25... Ra8 {[%clk 0:00:48.2]} 26. Rda5 {[%clk 0:00:54.1]}
26... Rxa5 {[%clk 0:00:43.7]} 27. Rxa5 {[%clk 0:00:55]} 27... Rb8 {[%clk
0:00:24.1]} 28. Ra7+ {[%clk 0:00:53.7]} 28... Ke8 {[%clk 0:00:24.8]} 29. Bxf7+
{[%clk 0:00:51.6]} 29... Kd8 {[%clk 0:00:24.3]} 30. Bb3 {[%clk 0:00:47.9]} 30...
Be7 {[%clk 0:00:22.1]} 31. Be6 {[%clk 0:00:36.2]} 31... h6 {[%clk 0:00:17.3]}
32. Kf3 {[%clk 0:00:35.3]} 32... Ke8 {[%clk 0:00:16.6]} 33. Kg4 {[%clk
0:00:34.4]} 33... Rb5 {[%clk 0:00:15.2]} 34. Bd7+ {[%clk 0:00:31.6]} 1-0

[Event "*** Titled Tuesday Blitz"]
[Site "Chess.com"]
[Date "2021.04.06"]
[Round "5"]
[White "ridnani2021"]
[Black "IngOscarArdila"]
[Result "1-0"]
[WhiteElo "2353"]
[BlackElo "2192"]
[TimeControl "180+1"]
[EndTime "10:57:09 PDT"]
[Termination "ridnani2021 won on time"]

1. e4 {[%clk 0:03:00.9]} 1... e5 {[%clk 0:02:57.2]} 2. Nf3 {[%clk 0:03:00.6]}
2... Nc6 {[%clk 0:02:55.8]} 3. d4 {[%clk 0:03:01]} 3... exd4 {[%clk 0:02:53.5]}
4. Nxd4 {[%clk 0:03:01.9]} 4... Bc5 {[%clk 0:02:52.8]} 5. Nxc6 {[%clk
0:02:59.1]} 5... Qf6 {[%clk 0:02:51]} 6. Qf3 {[%clk 0:02:59.7]} 6... Qxf3 {[%clk
0:02:47.7]} 7. gxf3 {[%clk 0:03:00.6]} 7... bxc6 {[%clk 0:02:47]} 8. Be3 {[%clk
0:03:00.2]} 8... Bb4+ {[%clk 0:02:42]} 9. c3 {[%clk 0:02:59]} 9... Be7 {[%clk
0:02:40]} 10. Nd2 {[%clk 0:02:59.2]} 10... Nf6 {[%clk 0:02:38.1]} 11. Nb3 {[%clk
0:02:59.2]} 11... d5 {[%clk 0:02:35.1]} 12. exd5 {[%clk 0:02:47.7]} 12... cxd5
{[%clk 0:02:33.1]} 13. O-O-O {[%clk 0:02:45.1]} 13... c6 {[%clk 0:02:24.8]} 14.
Nd4 {[%clk 0:02:42.6]} 14... Bd7 {[%clk 0:02:22.4]} 15. Ba6 {[%clk 0:02:38.2]}
15... Rb8 {[%clk 0:02:14.2]} 16. Rhg1 {[%clk 0:02:36.3]} 16... g6 {[%clk
0:02:08.5]} 17. Bh6 {[%clk 0:02:33]} 17... Rb6 {[%clk 0:02:03.5]} 18. Bd3 {[%clk
0:02:31.3]} 18... c5 {[%clk 0:01:57.6]} 19. Ne2 {[%clk 0:02:24.3]} 19... Kd8
{[%clk 0:01:50.6]} 20. Nf4 {[%clk 0:02:24]} 20... Re8 {[%clk 0:01:43.7]} 21. Bc2
{[%clk 0:02:15.6]} 21... Be6 {[%clk 0:01:25.5]} 22. Bg7 {[%clk 0:02:15.1]} 22...
Rd6 {[%clk 0:01:16.1]} 23. Ba4 {[%clk 0:02:09.3]} 23... Rg8 {[%clk 0:01:13.3]}
24. Nxe6+ {[%clk 0:02:02.7]} 24... fxe6 {[%clk 0:01:11.3]} 25. Bh6 {[%clk
0:02:02.6]} 25... Ra6 {[%clk 0:01:06.4]} 26. Bb3 {[%clk 0:01:56.6]} 26... Ke8
{[%clk 0:01:00.8]} 27. Kb1 {[%clk 0:01:54.7]} 27... c4 {[%clk 0:00:59.8]} 28.
Bc2 {[%clk 0:01:54.8]} 28... Kf7 {[%clk 0:00:59.2]} 29. Rde1 {[%clk 0:01:49.8]}
29... Re8 {[%clk 0:00:57.2]} 30. h4 {[%clk 0:01:49]} 30... Nh5 {[%clk
0:00:55.4]} 31. Bg5 {[%clk 0:01:48.3]} 31... Bxg5 {[%clk 0:00:50.1]} 32. hxg5
{[%clk 0:01:49.2]} 32... Rb6 {[%clk 0:00:38]} 33. b4 {[%clk 0:01:34.9]} 33... a5
{[%clk 0:00:35.4]} 34. a3 {[%clk 0:01:34.7]} 34... axb4 {[%clk 0:00:34.6]} 35.
cxb4 {[%clk 0:01:33.5]} 35... Ra8 {[%clk 0:00:33]} 36. Kb2 {[%clk 0:01:32.1]}
36... Rba6 {[%clk 0:00:25.9]} 37. Ra1 {[%clk 0:01:31.5]} 37... Nf4 {[%clk
0:00:25]} 38. a4 {[%clk 0:01:29.2]} 38... d4 {[%clk 0:00:22.4]} 39. Be4 {[%clk
0:01:18.8]} 39... Rb8 {[%clk 0:00:21]} 40. b5 {[%clk 0:01:16.2]} 40... Ra5
{[%clk 0:00:21.1]} 41. Rgd1 {[%clk 0:01:11.3]} 41... d3 {[%clk 0:00:20.9]} 42.
Kc3 {[%clk 0:01:11.1]} 42... Rc8 {[%clk 0:00:20]} 43. Kb4 {[%clk 0:01:09.4]}
43... e5 {[%clk 0:00:18.5]} 44. Kxa5 {[%clk 0:01:08.9]} 1-0